[Event "Late-Titled-Tuesday-Blitz-September-12-2023"]
[Site "Chess.com"]
[Date "2023.09.12"]
[Round "2"]
[White "guillembaches"]
[Black "h4parah5"]
[Result "0-1"]
[WhiteElo "2533"]
[BlackElo "2941"]
[TimeControl "180+1"]
[EndTime "14:16:30 PDT"]
[Termination "h4parah5 won on time"]

1. e4 {[%clk 0:03:00.9]} 1... c5 {[%clk 0:02:59]} 2. Nf3 {[%clk 0:03:01.2]} 2...
Nc6 {[%clk 0:02:58.9]} 3. d4 {[%clk 0:03:01.2]} 3... cxd4 {[%clk 0:02:59.8]} 4.
Nxd4 {[%clk 0:03:01.5]} 4... Nf6 {[%clk 0:03:00.5]} 5. Nc3 {[%clk 0:03:01.4]}
5... h5 {[%clk 0:03:00.3]} 6. f3 {[%clk 0:02:49]} 6... e5 {[%clk 0:02:59.4]} 7.
Nb3 {[%clk 0:02:43.4]} 7... Bb4 {[%clk 0:02:58.5]} 8. Bd2 {[%clk 0:02:41.8]}
8... Bxc3 {[%clk 0:02:56]} 9. Bxc3 {[%clk 0:02:41.1]} 9... d5 {[%clk 0:02:56.6]}
10. Bd3 {[%clk 0:02:21.8]} 10... dxe4 {[%clk 0:02:49.8]} 11. Bxe4 {[%clk
0:02:18.4]} 11... Nxe4 {[%clk 0:02:46.6]} 12. Qxd8+ {[%clk 0:02:15.9]} 12...
Kxd8 {[%clk 0:02:47.5]} 13. fxe4 {[%clk 0:02:15]} 13... f6 {[%clk 0:02:45.9]}
14. O-O-O+ {[%clk 0:02:06.1]} 14... Kc7 {[%clk 0:02:44.7]} 15. Nc5 {[%clk
0:02:00.1]} 15... h4 {[%clk 0:02:41]} 16. Rd2 {[%clk 0:01:50.8]} 16... b6 {[%clk
0:02:40.4]} 17. Nd3 {[%clk 0:01:50.1]} 17... a5 {[%clk 0:02:39.8]} 18. a4 {[%clk
0:01:40.9]} 18... Bb7 {[%clk 0:02:28.4]} 19. Rhd1 {[%clk 0:01:37.2]} 19... Rad8
{[%clk 0:02:20.8]} 20. Nf2 {[%clk 0:01:27.2]} 20... Rxd2 {[%clk 0:02:17.7]} 21.
Rxd2 {[%clk 0:01:27.3]} 21... Bc8 {[%clk 0:02:17.5]} 22. b3 {[%clk 0:01:20.9]}
22... Rh5 {[%clk 0:02:10.4]} 23. Rd3 {[%clk 0:01:14.9]} 23... Ba6 {[%clk
0:02:03.6]} 24. Rd2 {[%clk 0:01:07.6]} 24... Rg5 {[%clk 0:02:01.9]} 25. Nd3
{[%clk 0:01:02.7]} 25... Bb7 {[%clk 0:01:49.8]} 26. Re2 {[%clk 0:01:00]} 26...
Nd8 {[%clk 0:01:48.3]} 27. h3 {[%clk 0:00:36.6]} 27... Nf7 {[%clk 0:01:46.3]}
28. Bd2 {[%clk 0:00:36.5]} 28... Rg6 {[%clk 0:01:41.8]} 29. b4 {[%clk
0:00:30.5]} 29... axb4 {[%clk 0:01:39]} 30. Bxb4 {[%clk 0:00:30.1]} 30... Ng5
{[%clk 0:01:20.3]} 31. Nf2 {[%clk 0:00:26.5]} 31... Ne6 {[%clk 0:01:20.8]} 32.
Ng4 {[%clk 0:00:24.3]} 32... Nd4 {[%clk 0:01:17.6]} 33. Re3 {[%clk 0:00:23.2]}
33... Bc8 {[%clk 0:01:17.2]} 34. c3 {[%clk 0:00:20.5]} 34... Nc6 {[%clk
0:01:12]} 0-1

[Event "Late-Titled-Tuesday-Blitz-September-12-2023"]
[Site "Chess.com"]
[Date "2023.09.12"]
[Round "2"]
[White "Cambek64"]
[Black "trriinu"]
[Result "1-0"]
[WhiteElo "2475"]
[BlackElo "2216"]
[TimeControl "180+1"]
[EndTime "14:16:30 PDT"]
[Termination "Cambek64 won on time"]

1. e4 {[%clk 0:02:59.6]} 1... d5 {[%clk 0:02:56.3]} 2. Nc3 {[%clk 0:02:58.8]}
2... d4 {[%clk 0:02:51]} 3. Nce2 {[%clk 0:02:58.8]} 3... e5 {[%clk 0:02:50.9]}
4. Ng3 {[%clk 0:02:59.3]} 4... c5 {[%clk 0:02:50.5]} 5. Nf3 {[%clk 0:02:59.9]}
5... Nc6 {[%clk 0:02:51.1]} 6. Bb5 {[%clk 0:03:00]} 6... Bd6 {[%clk 0:02:49.1]}
7. Bxc6+ {[%clk 0:02:58.4]} 7... bxc6 {[%clk 0:02:50]} 8. d3 {[%clk 0:02:58.4]}
8... h6 {[%clk 0:02:45]} 9. O-O {[%clk 0:02:58.2]} 9... Be6 {[%clk 0:02:45.3]}
10. b3 {[%clk 0:02:56.6]} 10... Qd7 {[%clk 0:02:29.9]} 11. h3 {[%clk 0:02:56]}
11... Ne7 {[%clk 0:02:20.4]} 12. Nh2 {[%clk 0:02:51.9]} 12... O-O {[%clk
0:02:14.5]} 13. Bd2 {[%clk 0:02:37.1]} 13... Ng6 {[%clk 0:01:46.7]} 14. Qh5
{[%clk 0:02:33.9]} 14... Nf4 {[%clk 0:00:39.9]} 15. Bxf4 {[%clk 0:02:31]} 15...
exf4 {[%clk 0:00:40.8]} 16. Ne2 {[%clk 0:02:23.8]} 16... f5 {[%clk 0:00:37.1]}
17. exf5 {[%clk 0:02:20.7]} 17... Rxf5 {[%clk 0:00:30.5]} 18. Qf3 {[%clk
0:02:19.8]} 18... Bd5 {[%clk 0:00:28.8]} 19. Qg4 {[%clk 0:02:08.3]} 19... h5
{[%clk 0:00:26]} 20. Qf3 {[%clk 0:01:58.4]} 20... Bxf3 {[%clk 0:00:25.4]} 21.
Nxf3 {[%clk 0:01:58.8]} 21... Re8 {[%clk 0:00:24.6]} 22. Rfe1 {[%clk 0:01:57.1]}
22... g5 {[%clk 0:00:23.3]} 23. Kf1 {[%clk 0:01:56.2]} 23... g4 {[%clk
0:00:22.3]} 24. Nh4 {[%clk 0:01:54.1]} 24... Rg5 {[%clk 0:00:16.6]} 25. Ng1
{[%clk 0:01:48.5]} 25... g3 {[%clk 0:00:09.4]} 26. Ngf3 {[%clk 0:01:40.9]} 26...
Rxe1+ {[%clk 0:00:08.1]} 27. Rxe1 {[%clk 0:01:38.3]} 27... gxf2 {[%clk
0:00:08.4]} 28. Kxf2 {[%clk 0:01:36.6]} 28... Rg3 {[%clk 0:00:06.7]} 29. Re4
{[%clk 0:01:27.1]} 29... Be7 {[%clk 0:00:03.5]} 30. Rxf4 {[%clk 0:01:22.5]}
30... Bxh4 {[%clk 0:00:03.6]} 31. Nxh4 {[%clk 0:01:22.7]} 31... Re3 {[%clk
0:00:02.8]} 32. Nf5 {[%clk 0:01:13.3]} 32... Qc7 {[%clk 0:00:03.1]} 33. g3
{[%clk 0:01:10.2]} 1-0

[Event "Late-Titled-Tuesday-Blitz-September-12-2023"]
[Site "Chess.com"]
[Date "2023.09.12"]
[Round "2"]
[White "PapaieDudu"]
[Black "rdarruda"]
[Result "0-1"]
[WhiteElo "2293"]
[BlackElo "2515"]
[TimeControl "180+1"]
[EndTime "14:16:41 PDT"]
[Termination "rdarruda won by resignation"]

1. e4 {[%clk 0:03:00.9]} 1... c5 {[%clk 0:02:11]} 2. Nf3 {[%clk 0:02:59]} 2...
Nc6 {[%clk 0:02:08.7]} 3. d4 {[%clk 0:02:58.7]} 3... cxd4 {[%clk 0:02:08.4]} 4.
Nxd4 {[%clk 0:02:58.8]} 4... e5 {[%clk 0:02:09.1]} 5. Nb3 {[%clk 0:02:56.7]}
5... Nf6 {[%clk 0:02:08.2]} 6. Nc3 {[%clk 0:02:56.7]} 6... Bb4 {[%clk
0:02:08.3]} 7. Bd3 {[%clk 0:02:56.6]} 7... d5 {[%clk 0:02:07.5]} 8. exd5 {[%clk
0:02:56.9]} 8... Nxd5 {[%clk 0:02:08]} 9. Bd2 {[%clk 0:02:57.1]} 9... Nxc3
{[%clk 0:02:08.1]} 10. bxc3 {[%clk 0:02:57.4]} 10... Be7 {[%clk 0:02:08.4]} 11.
Qh5 {[%clk 0:02:52.1]} 11... h6 {[%clk 0:02:05.1]} 12. O-O-O {[%clk 0:02:42.2]}
12... Be6 {[%clk 0:02:01.5]} 13. f4 {[%clk 0:02:31.6]} 13... Qc7 {[%clk
0:01:51.3]} 14. Rhe1 {[%clk 0:02:08.8]} 14... g6 {[%clk 0:01:39.3]} 15. Bxg6
{[%clk 0:02:01.4]} 15... fxg6 {[%clk 0:01:40.2]} 16. Qxg6+ {[%clk 0:01:56]}
16... Bf7 {[%clk 0:01:40.6]} 17. Qg7 {[%clk 0:01:49.7]} 17... Rg8 {[%clk
0:01:39.9]} 18. Qh7 {[%clk 0:01:31.3]} 18... O-O-O {[%clk 0:01:37.2]} 19. fxe5
{[%clk 0:01:21.8]} 19... Be6 {[%clk 0:01:28.6]} 20. Qxh6 {[%clk 0:01:13.1]}
20... Bf5 {[%clk 0:01:20.8]} 21. Kb2 {[%clk 0:01:09.6]} 21... Rxg2 {[%clk
0:01:19.5]} 22. Rf1 {[%clk 0:00:55.2]} 22... Bg6 {[%clk 0:01:15.4]} 23. Qe3
{[%clk 0:00:38.6]} 23... Kb8 {[%clk 0:01:11.5]} 24. Qf3 {[%clk 0:00:34.9]} 24...
Rxh2 {[%clk 0:00:57.5]} 25. Qg3 {[%clk 0:00:35.3]} 25... Rhxd2 {[%clk
0:00:57.4]} 26. Rxd2 {[%clk 0:00:27.6]} 26... Rxd2 {[%clk 0:00:57.4]} 27. Nxd2
{[%clk 0:00:27.6]} 27... Nxe5 {[%clk 0:00:57]} 28. Re1 {[%clk 0:00:23.5]} 28...
Nd3+ {[%clk 0:00:53.7]} 29. cxd3 {[%clk 0:00:21.3]} 29... Qxg3 {[%clk
0:00:53.6]} 30. Rxe7 {[%clk 0:00:19.2]} 30... Qxd3 {[%clk 0:00:53.4]} 31. Nb3
{[%clk 0:00:16.9]} 31... b6 {[%clk 0:00:47.5]} 32. Nd4 {[%clk 0:00:16]} 32...
Be4 {[%clk 0:00:43.6]} 33. Nc6+ {[%clk 0:00:11.5]} 33... Bxc6 {[%clk 0:00:42.9]}
0-1

[Event "Late-Titled-Tuesday-Blitz-September-12-2023"]
[Site "Chess.com"]
[Date "2023.09.12"]
[Round "2"]
[White "HrvojeZagreb"]
[Black "only_strong_moves"]
[Result "0-1"]
[WhiteElo "2275"]
[BlackElo "2508"]
[TimeControl "180+1"]
[EndTime "14:16:41 PDT"]
[Termination "only_strong_moves won by checkmate"]

1. f4 {[%clk 0:02:56]} 1... d5 {[%clk 0:02:59.7]} 2. b3 {[%clk 0:02:55.8]} 2...
c5 {[%clk 0:02:56.6]} 3. Bb2 {[%clk 0:02:56.1]} 3... Nc6 {[%clk 0:02:56.6]} 4.
Nf3 {[%clk 0:02:56.3]} 4... Nh6 {[%clk 0:02:53.3]} 5. e3 {[%clk 0:02:56.2]} 5...
f6 {[%clk 0:02:53.4]} 6. Bb5 {[%clk 0:02:55.4]} 6... Nf7 {[%clk 0:02:53.6]} 7.
Bxc6+ {[%clk 0:02:53.6]} 7... bxc6 {[%clk 0:02:53.5]} 8. d3 {[%clk 0:02:53.9]}
8... Qd6 {[%clk 0:02:46.2]} 9. O-O {[%clk 0:02:43.4]} 9... Bg4 {[%clk
0:02:44.2]} 10. Qe1 {[%clk 0:02:39.3]} 10... Bxf3 {[%clk 0:02:29]} 11. Rxf3
{[%clk 0:02:40.2]} 11... g5 {[%clk 0:02:29.1]} 12. Nd2 {[%clk 0:02:09.3]} 12...
gxf4 {[%clk 0:02:23.5]} 13. exf4 {[%clk 0:02:09.1]} 13... e6 {[%clk 0:02:19.3]}
14. Bxf6 {[%clk 0:02:04.5]} 14... Rg8 {[%clk 0:02:19.3]} 15. Rg3 {[%clk
0:01:49.6]} 15... Rxg3 {[%clk 0:02:15.9]} 16. Qxg3 {[%clk 0:01:47.3]} 16... Nh6
{[%clk 0:01:58.3]} 17. Be5 {[%clk 0:01:11.7]} 17... Qd7 {[%clk 0:01:55.9]} 18.
Nf3 {[%clk 0:01:01.9]} 18... Nf5 {[%clk 0:01:52.1]} 19. Qg4 {[%clk 0:00:59.6]}
19... O-O-O {[%clk 0:01:50]} 20. Nh4 {[%clk 0:00:53.8]} 20... Ne3 {[%clk
0:01:43]} 21. Qe2 {[%clk 0:00:52.2]} 21... d4 {[%clk 0:01:43.4]} 22. c3 {[%clk
0:00:44.7]} 22... Bg7 {[%clk 0:01:41.1]} 23. cxd4 {[%clk 0:00:42.8]} 23... cxd4
{[%clk 0:01:39.9]} 24. Nf3 {[%clk 0:00:40.4]} 24... Bxe5 {[%clk 0:01:38.2]} 25.
Nxe5 {[%clk 0:00:41]} 25... Qd5 {[%clk 0:01:36.9]} 26. Rc1 {[%clk 0:00:40.2]}
26... Rg8 {[%clk 0:01:20]} 27. g3 {[%clk 0:00:28.5]} 27... h5 {[%clk 0:01:18.4]}
28. Nxc6 {[%clk 0:00:24.3]} 28... Kd7 {[%clk 0:01:03.9]} 29. Ne5+ {[%clk
0:00:21.8]} 29... Kd8 {[%clk 0:01:00.4]} 30. Qf3 {[%clk 0:00:18.8]} 30... h4
{[%clk 0:00:57.6]} 31. Qxd5+ {[%clk 0:00:18.1]} 31... Nxd5 {[%clk 0:00:58.5]}
32. Kf2 {[%clk 0:00:16.7]} 32... hxg3+ {[%clk 0:00:57.7]} 33. hxg3 {[%clk
0:00:17.6]} 33... Ke7 {[%clk 0:00:56.7]} 34. Nc6+ {[%clk 0:00:17.4]} 34... Kf6
{[%clk 0:00:56.9]} 35. Nxd4 {[%clk 0:00:18.3]} 35... Nb4 {[%clk 0:00:55.2]} 36.
Ke3 {[%clk 0:00:16.7]} 36... Rxg3+ {[%clk 0:00:52.5]} 37. Ke4 {[%clk 0:00:15.1]}
37... Nxd3 {[%clk 0:00:48.9]} 38. Rc6 {[%clk 0:00:14.2]} 38... Nf2# {[%clk
0:00:48.7]} 0-1

[Event "Late-Titled-Tuesday-Blitz-September-12-2023"]
[Site "Chess.com"]
[Date "2023.09.12"]
[Round "2"]
[White "C_K_G"]
[Black "Roberz12"]
[Result "0-1"]
[WhiteElo "2031"]
[BlackElo "2433"]
[TimeControl "180+1"]
[EndTime "14:16:43 PDT"]
[Termination "Roberz12 won on time"]

1. e4 {[%clk 0:03:00.9]} 1... e6 {[%clk 0:02:51]} 2. Nf3 {[%clk 0:03:00.6]} 2...
c5 {[%clk 0:02:50.7]} 3. Nc3 {[%clk 0:03:01.3]} 3... Nc6 {[%clk 0:02:50.6]} 4.
d4 {[%clk 0:03:01.1]} 4... cxd4 {[%clk 0:02:51.4]} 5. Nxd4 {[%clk 0:03:01.1]}
5... Nf6 {[%clk 0:02:52.3]} 6. Be3 {[%clk 0:02:57.1]} 6... Bb4 {[%clk
0:02:50.4]} 7. Bd3 {[%clk 0:02:56.8]} 7... d5 {[%clk 0:02:48.7]} 8. Nxc6 {[%clk
0:02:55.5]} 8... bxc6 {[%clk 0:02:48.7]} 9. e5 {[%clk 0:02:55.2]} 9... Nd7
{[%clk 0:02:36.1]} 10. f4 {[%clk 0:02:54.8]} 10... c5 {[%clk 0:02:35.5]} 11. Bd2
{[%clk 0:02:52.4]} 11... c4 {[%clk 0:02:35.8]} 12. Be2 {[%clk 0:02:51.3]} 12...
Bc5 {[%clk 0:02:32.4]} 13. Bf3 {[%clk 0:02:47.7]} 13... Rb8 {[%clk 0:02:11.6]}
14. Rb1 {[%clk 0:02:45.3]} 14... a6 {[%clk 0:02:09.8]} 15. Qe2 {[%clk
0:02:44.5]} 15... O-O {[%clk 0:01:57.4]} 16. g3 {[%clk 0:02:23.1]} 16... f5
{[%clk 0:01:44.2]} 17. Nxd5 {[%clk 0:02:13.5]} 17... exd5 {[%clk 0:01:39.8]} 18.
Bxd5+ {[%clk 0:02:13.1]} 18... Kh8 {[%clk 0:01:40.4]} 19. Bxc4 {[%clk
0:02:11.2]} 19... Nb6 {[%clk 0:01:38.3]} 20. Bd3 {[%clk 0:02:08.7]} 20... Bb7
{[%clk 0:01:36.7]} 21. Rf1 {[%clk 0:02:03.1]} 21... Na4 {[%clk 0:01:31.2]} 22.
b3 {[%clk 0:01:58]} 22... Nb6 {[%clk 0:01:26.2]} 23. Be3 {[%clk 0:01:53.4]}
23... Bb4+ {[%clk 0:01:26.3]} 24. Kd1 {[%clk 0:01:53.3]} 24... Nd5 {[%clk
0:01:26.8]} 25. Bd2 {[%clk 0:01:31.9]} 25... Qa5 {[%clk 0:01:26.3]} 26. a4
{[%clk 0:01:28.9]} 26... Bxd2 {[%clk 0:01:25.7]} 27. Qxd2 {[%clk 0:01:28.8]}
27... Nc3+ {[%clk 0:01:25.8]} 28. Kc1 {[%clk 0:01:26]} 28... Qb4 {[%clk
0:01:12.1]} 29. Ra1 {[%clk 0:01:24.7]} 29... Be4 {[%clk 0:01:10.2]} 30. Bxe4
{[%clk 0:00:58.4]} 30... fxe4 {[%clk 0:01:09.7]} 31. Qd6 {[%clk 0:00:57.6]}
31... Ne2+ {[%clk 0:01:05.7]} 32. Kb1 {[%clk 0:00:56.7]} 32... Qc3 {[%clk
0:01:02.7]} 33. Rd1 {[%clk 0:00:52.9]} 33... Rxb3+ {[%clk 0:01:01.2]} 0-1

[Event "Late-Titled-Tuesday-Blitz-September-12-2023"]
[Site "Chess.com"]
[Date "2023.09.12"]
[Round "2"]
[White "KaydenTroffChess"]
[Black "MusicCityMaster"]
[Result "1-0"]
[WhiteElo "2744"]
[BlackElo "2375"]
[TimeControl "180+1"]
[EndTime "14:16:44 PDT"]
[Termination "KaydenTroffChess won on time"]

1. d4 {[%clk 0:03:00.9]} 1... Nf6 {[%clk 0:02:59.3]} 2. c4 {[%clk 0:03:01]} 2...
c5 {[%clk 0:02:58.1]} 3. d5 {[%clk 0:03:01]} 3... b5 {[%clk 0:02:57.2]} 4. cxb5
{[%clk 0:02:53.4]} 4... a6 {[%clk 0:02:53.8]} 5. b6 {[%clk 0:02:50.2]} 5... e6
{[%clk 0:02:53.5]} 6. Nc3 {[%clk 0:02:48.1]} 6... Nxd5 {[%clk 0:02:53.7]} 7.
Nxd5 {[%clk 0:02:48.7]} 7... exd5 {[%clk 0:02:54.5]} 8. Qxd5 {[%clk 0:02:49]}
8... Nc6 {[%clk 0:02:55.1]} 9. Nf3 {[%clk 0:02:44.4]} 9... Rb8 {[%clk
0:02:54.1]} 10. e4 {[%clk 0:02:42.5]} 10... Be7 {[%clk 0:02:53.3]} 11. Bc4
{[%clk 0:02:41.7]} 11... O-O {[%clk 0:02:53.2]} 12. a3 {[%clk 0:02:38.8]} 12...
Rxb6 {[%clk 0:02:49.7]} 13. O-O {[%clk 0:02:35.9]} 13... Na5 {[%clk 0:02:33.5]}
14. Ba2 {[%clk 0:02:33.2]} 14... Bb7 {[%clk 0:02:31.2]} 15. Qf5 {[%clk
0:02:22.1]} 15... Rf6 {[%clk 0:02:08.5]} 16. Qe5 {[%clk 0:02:20.6]} 16... Bd6
{[%clk 0:02:02]} 17. Qh5 {[%clk 0:02:19.6]} 17... Bxe4 {[%clk 0:01:49.4]} 18.
Bg5 {[%clk 0:02:19.1]} 18... Bxf3 {[%clk 0:01:49.6]} 19. Qxf3 {[%clk 0:02:12]}
19... Rxf3 {[%clk 0:01:40.2]} 20. Bxd8 {[%clk 0:02:11.7]} 20... Rxd8 {[%clk
0:01:23.6]} 21. gxf3 {[%clk 0:02:08.4]} 21... Be5 {[%clk 0:01:21.6]} 22. Rab1
{[%clk 0:02:02.9]} 22... Nc6 {[%clk 0:01:20.3]} 23. b4 {[%clk 0:01:40.6]} 23...
cxb4 {[%clk 0:01:01.5]} 24. axb4 {[%clk 0:01:40.5]} 24... Nd4 {[%clk 0:01:01.7]}
25. Kg2 {[%clk 0:01:35.7]} 25... Ne2 {[%clk 0:00:46]} 26. Rfe1 {[%clk 0:01:24]}
26... Nf4+ {[%clk 0:00:45.1]} 27. Kh1 {[%clk 0:01:18.6]} 27... d6 {[%clk
0:00:41.6]} 28. Bc4 {[%clk 0:01:06.3]} 28... Re8 {[%clk 0:00:25.8]} 29. Bxa6
{[%clk 0:00:56.1]} 29... Re6 {[%clk 0:00:25.3]} 30. b5 {[%clk 0:00:51.3]} 30...
Rh6 {[%clk 0:00:23.6]} 31. b6 {[%clk 0:00:46.4]} 31... Nd5 {[%clk 0:00:03.9]}
32. Rxe5 {[%clk 0:00:42.6]} 32... dxe5 {[%clk 0:00:02.7]} 33. b7 {[%clk
0:00:42.5]} 1-0

[Event "Late-Titled-Tuesday-Blitz-September-12-2023"]
[Site "Chess.com"]
[Date "2023.09.12"]
[Round "2"]
[White "ElCoachRene"]
[Black "muchojogo"]
[Result "0-1"]
[WhiteElo "2202"]
[BlackElo "2475"]
[TimeControl "180+1"]
[EndTime "14:16:44 PDT"]
[Termination "muchojogo won by resignation"]

1. d4 {[%clk 0:03:00.9]} 1... Nf6 {[%clk 0:02:58.8]} 2. Bf4 {[%clk 0:03:01]}
2... c5 {[%clk 0:02:52.6]} 3. e3 {[%clk 0:03:00.5]} 3... Nd5 {[%clk 0:02:53.2]}
4. Bg3 {[%clk 0:02:57.1]} 4... Qb6 {[%clk 0:02:53.1]} 5. Qc1 {[%clk 0:02:45.8]}
5... cxd4 {[%clk 0:02:47.4]} 6. exd4 {[%clk 0:02:45.6]} 6... Qxd4 {[%clk
0:02:47.1]} 7. Nf3 {[%clk 0:02:44]} 7... Qb6 {[%clk 0:02:35.2]} 8. Nbd2 {[%clk
0:02:40.6]} 8... e6 {[%clk 0:02:34.2]} 9. Nc4 {[%clk 0:02:39.4]} 9... Qc5 {[%clk
0:02:24.5]} 10. a3 {[%clk 0:02:20.2]} 10... a5 {[%clk 0:02:23.1]} 11. c3 {[%clk
0:02:10.4]} 11... a4 {[%clk 0:02:21.6]} 12. Be2 {[%clk 0:01:52.6]} 12... b5
{[%clk 0:02:19.2]} 13. Nce5 {[%clk 0:01:42.8]} 13... d6 {[%clk 0:02:18.1]} 14.
Nd3 {[%clk 0:01:42.7]} 14... Qb6 {[%clk 0:02:17.5]} 15. O-O {[%clk 0:01:38.7]}
15... Be7 {[%clk 0:02:17.6]} 16. Nb4 {[%clk 0:01:37.8]} 16... Bb7 {[%clk
0:02:15.1]} 17. Rd1 {[%clk 0:01:31.9]} 17... O-O {[%clk 0:02:12.9]} 18. Qd2
{[%clk 0:01:28.8]} 18... Nd7 {[%clk 0:02:12.4]} 19. Bd3 {[%clk 0:01:24.5]} 19...
Nxb4 {[%clk 0:02:10]} 20. axb4 {[%clk 0:01:23.4]} 20... e5 {[%clk 0:02:10.8]}
21. Qe2 {[%clk 0:01:17.7]} 21... Bc6 {[%clk 0:02:07.5]} 22. Be4 {[%clk
0:01:16.3]} 22... Nf6 {[%clk 0:02:02.4]} 23. Bxc6 {[%clk 0:01:15.4]} 23... Qxc6
{[%clk 0:02:03.3]} 24. h3 {[%clk 0:01:13.3]} 24... g6 {[%clk 0:01:57.9]} 25. Bh4
{[%clk 0:01:12.4]} 25... Kg7 {[%clk 0:01:56.9]} 26. Qe3 {[%clk 0:01:10.5]} 26...
Nd5 {[%clk 0:01:54.7]} 27. Rxd5 {[%clk 0:01:05.7]} 27... Qxd5 {[%clk 0:01:52.8]}
28. Bxe7 {[%clk 0:01:04.7]} 28... Rfe8 {[%clk 0:01:53.7]} 29. Bg5 {[%clk
0:01:03.5]} 29... f6 {[%clk 0:01:52.8]} 30. Bh6+ {[%clk 0:01:01.6]} 30... Kf7
{[%clk 0:01:53.2]} 31. Qd2 {[%clk 0:00:57.7]} 31... Qxd2 {[%clk 0:01:43.5]} 32.
Bxd2 {[%clk 0:00:57.4]} 32... d5 {[%clk 0:01:42.4]} 33. Rd1 {[%clk 0:00:53.3]}
33... a3 {[%clk 0:01:41.2]} 34. bxa3 {[%clk 0:00:52.5]} 34... Rxa3 {[%clk
0:01:42.1]} 35. Ne1 {[%clk 0:00:49.2]} 35... Ke6 {[%clk 0:01:41]} 36. Kf1 {[%clk
0:00:49.3]} 36... Rea8 {[%clk 0:01:37.6]} 37. Nd3 {[%clk 0:00:47.2]} 37... Ra1
{[%clk 0:01:37.3]} 38. Nc5+ {[%clk 0:00:45.6]} 38... Kd6 {[%clk 0:01:36.9]} 39.
Ke2 {[%clk 0:00:44.2]} 39... Rxd1 {[%clk 0:01:36]} 40. Kxd1 {[%clk 0:00:45.1]}
40... Ra1+ {[%clk 0:01:34.2]} 41. Ke2 {[%clk 0:00:44.5]} 41... Ra2 {[%clk
0:01:34.7]} 42. Kd1 {[%clk 0:00:43.5]} 42... d4 {[%clk 0:01:33.6]} 43. cxd4
{[%clk 0:00:39.6]} 43... exd4 {[%clk 0:01:34.5]} 44. Bf4+ {[%clk 0:00:39.3]}
44... Kd5 {[%clk 0:01:34.9]} 45. Bg3 {[%clk 0:00:26.2]} 45... Kc4 {[%clk
0:01:33.7]} 46. Nd7 {[%clk 0:00:22.6]} 46... Kd3 {[%clk 0:01:24]} 47. Kc1 {[%clk
0:00:20.4]} 47... Ke2 {[%clk 0:01:23.8]} 48. Nxf6 {[%clk 0:00:18.7]} 48... d3
{[%clk 0:01:24.2]} 49. Bf4 {[%clk 0:00:17.7]} 49... d2+ {[%clk 0:01:22.2]} 0-1

[Event "Late-Titled-Tuesday-Blitz-September-12-2023"]
[Site "Chess.com"]
[Date "2023.09.12"]
[Round "2"]
[White "kleopl"]
[Black "LastGladiator1"]
[Result "0-1"]
[WhiteElo "2538"]
[BlackElo "2946"]
[TimeControl "180+1"]
[EndTime "14:16:46 PDT"]
[Termination "LastGladiator1 won by resignation"]

1. e4 {[%clk 0:03:00.9]} 1... c5 {[%clk 0:02:58.2]} 2. Nc3 {[%clk 0:03:00.1]}
2... a6 {[%clk 0:02:57.4]} 3. Nf3 {[%clk 0:02:59]} 3... Nc6 {[%clk 0:02:53.2]}
4. d4 {[%clk 0:02:58.4]} 4... cxd4 {[%clk 0:02:53.5]} 5. Nxd4 {[%clk 0:02:59.3]}
5... e6 {[%clk 0:02:53.9]} 6. Be2 {[%clk 0:02:55.8]} 6... Qc7 {[%clk 0:02:52]}
7. O-O {[%clk 0:02:51.3]} 7... Nf6 {[%clk 0:02:41.1]} 8. Bg5 {[%clk 0:02:43.4]}
8... Bd6 {[%clk 0:02:20.8]} 9. g3 {[%clk 0:02:38.8]} 9... Be5 {[%clk 0:02:12.5]}
10. Nxc6 {[%clk 0:02:35.9]} 10... Qxc6 {[%clk 0:02:09.4]} 11. Bxf6 {[%clk
0:02:26.8]} 11... Bxf6 {[%clk 0:01:52.3]} 12. Qd3 {[%clk 0:02:24.6]} 12... b5
{[%clk 0:01:47.7]} 13. f4 {[%clk 0:02:22.9]} 13... Bb7 {[%clk 0:01:35.6]} 14.
Bf3 {[%clk 0:02:22.8]} 14... Bxc3 {[%clk 0:00:57.4]} 15. bxc3 {[%clk 0:02:19]}
15... Rc8 {[%clk 0:00:52.4]} 16. Rfd1 {[%clk 0:01:56.7]} 16... O-O {[%clk
0:00:49.6]} 17. Kg2 {[%clk 0:01:51.9]} 17... Qxc3 {[%clk 0:00:48.7]} 18. Qxd7
{[%clk 0:01:51.5]} 18... Rc7 {[%clk 0:00:41.4]} 19. Qd6 {[%clk 0:01:32.3]} 19...
Qxc2+ {[%clk 0:00:38.2]} 20. Rd2 {[%clk 0:01:32.3]} 20... Qc3 {[%clk 0:00:38.6]}
21. Rb1 {[%clk 0:01:25.1]} 21... g6 {[%clk 0:00:30.9]} 22. h4 {[%clk 0:01:23.1]}
22... h5 {[%clk 0:00:17.4]} 23. a4 {[%clk 0:01:05.8]} 23... bxa4 {[%clk
0:00:14.9]} 24. Rxb7 {[%clk 0:01:05.6]} 24... Rxb7 {[%clk 0:00:13.8]} 25. f5
{[%clk 0:01:06]} 25... Rb2 {[%clk 0:00:13.3]} 26. Rxb2 {[%clk 0:01:03.3]} 26...
Qxb2+ {[%clk 0:00:14.2]} 27. Kh3 {[%clk 0:01:03.4]} 27... Qf6 {[%clk 0:00:13.5]}
28. g4 {[%clk 0:01:00.2]} 28... hxg4+ {[%clk 0:00:13.3]} 29. Bxg4 {[%clk
0:01:01.1]} 29... gxf5 {[%clk 0:00:13.7]} 30. exf5 {[%clk 0:01:00.9]} 30... Rd8
{[%clk 0:00:14.3]} 31. Qxa6 {[%clk 0:01:00]} 31... Qc3+ {[%clk 0:00:13.4]} 32.
Bf3 {[%clk 0:00:38.5]} 32... Qxf3+ {[%clk 0:00:12.2]} 0-1